fUSD/lending_fUSD_20260422
["ID","MTS","AMOUNT","RATE_DAILY","PERIOD"]
[420971241,1776832242498,-160.0,0.0001006,2]
[420971242,1776832242517,-164.05,0.00010072,2]
[420971243,1776832242527,-160.0,0.00010143,2]
[420971244,1776832242536,-224.088772,0.00010143,2]
[420971245,1776832242546,-288.177544,0.00010143,2]
[420971246,1776832242555,-160.0,0.0001016,2]
[420971247,1776832242565,-606.633218,0.0001016,2]
[420971249,1776832242574,-1053.266437,0.0001016,2]
[420971251,1776832242584,-160.0,0.00010186,2]
[420971253,1776832242594,-506.019606,0.00010186,2]
[420971255,1776832242603,-852.039213,0.00010186,2]
[420971257,1776832242612,-160.0,0.00010192,2]
[420971258,1776832242622,-283.504016,0.00010192,2]
[420971260,1776832242631,-407.008033,0.00010192,2]
[420971262,1776832242640,-456.514239,0.00010216,2]
[420971264,1776832242649,-160.0,0.00010216,2]
[420971265,1776832242659,-1001.335177,0.00010216,2]
[420971266,1776832242668,-1842.670355,0.00010216,2]
[420971267,1776832242677,-199.465813,0.0001025,2]
[420971268,1776832242687,-310.0,0.00010264,2]
[420971269,1776832242697,-959.0,0.00010265,2]
[420971270,1776832242706,-854.0,0.00010274,2]
[420971271,1776832242716,-379.0,0.00010285,2]
[420971272,1776832242725,-1834.0,0.00010291,2]
[420971273,1776832242734,-3532.25,0.00010298,2]
[420971275,1776832242744,-244.0,0.00010305,2]
[420971277,1776832242753,-1367.0,0.00010311,2]
[420971279,1776832242763,-959.0,0.00010315,2]
[420971280,1776832242772,-959.0,0.00010317,2]
[420971281,1776832242782,-959.0,0.00010317,2]
[420971282,1776832242792,-237.0,0.00010326,2]
[420971283,1776832242803,-1151.0,0.00010332,2]
[420971284,1776832242812,-433.0,0.00010333,2]
[420971285,1776832242822,-292.0,0.00010346,2]
[420971286,1776832242831,-749.0,0.00010346,2]
[420971287,1776832242841,-539.0,0.0001035,2]
[420971288,1776832242850,-959.0,0.0001035,2]
[420971290,1776832242859,-461.0,0.00010367,2]
[420971291,1776832242869,-959.0,0.00010394,2]
[420971292,1776832242878,-749.0,0.000104,2]
[420971293,1776832242888,-644.0,0.00010409,2]
[420971294,1776832242897,-749.0,0.00010424,2]
[420971295,1776832242912,-249.004,0.00010445,2]
[420971296,1776832242922,-155.0,0.00010446,2]
[420971297,1776832242932,-959.0,0.00010459,2]
[420971298,1776832242941,-338.55480501,0.0001048,2]
[420971299,1776832242950,-854.0,0.00010546,2]
[420971300,1776832242960,-3292.0,0.00010555,2]
[420971301,1776832242970,-162.56,0.0001057,2]
[420971302,1776832242979,-164.05,0.00010575,2]
[420971303,1776832242989,-959.0,0.00010581,2]
[420971304,1776832242998,-959.0,0.00010588,2]
[420971305,1776832243008,-408.0,0.00010603,2]
[420971306,1776832243017,-959.0,0.00010638,2]
[420971307,1776832243027,-305.575598,0.0001065,2]
[420971308,1776832243036,-959.0,0.00010654,2]
[420971309,1776832243045,-959.0,0.00010659,2]
[420971310,1776832243055,-827.227116,0.00010668,2]
[420971311,1776832243064,-850.5744173,0.00010672,2]
[420971312,1776832243073,-938.0,0.00010686,2]
[420971313,1776832243082,-959.0,0.00010687,2]
[420971314,1776832243092,-690.026736,0.00010695,2]
[420971315,1776832243101,-578.20924308,0.00010698,2]
[420971316,1776832243111,-380.987,0.00010698,2]
[420971317,1776832243120,-500.0,0.00010698,2]
[420971318,1776832243130,-151.0,0.00010698,2]
[420971319,1776832243139,-2000.0,0.00010698,2]
[420971320,1776832243149,-1000.0,0.00010698,2]
[420971321,1776832243158,-397.60067362,0.00010698,2]
[420971322,1776832243168,-174.61919141,0.00010698,2]
[420971323,1776832243178,-279.9045709,0.00010698,2]
[420971324,1776832243187,-194.72792767,0.00010698,2]
[420971325,1776832243196,-386.596386,0.00010702,2]
[420971326,1776832243206,-207.506472,0.00010726,2]
[420971327,1776832243215,-1365.45706,0.00010726,2]
[420971328,1776832243224,-500.0,0.00010753,2]
[420971329,1776832243233,-151.0,0.00010753,2]
[420971330,1776832243243,-1093.83820704,0.00010805,3]
[420971331,1776832243252,-500.0,0.00010808,2]
[420971332,1776832243262,-151.0,0.00010808,2]
[420971333,1776832243271,-959.0,0.00010812,2]
[420971334,1776832243280,-959.0,0.00010816,2]
[420971335,1776832243289,-151.0,0.0001085,2]
[420971336,1776832243299,-151.0,0.0001085,2]
[420971337,1776832243314,-151.0,0.00010858,2]
[420971338,1776832243324,-151.0,0.00010858,2]
[420971339,1776832243334,-500.0,0.00010863,2]
[420971340,1776832243343,-151.0,0.00010863,2]
[420971341,1776832243353,-823.0,0.00010883,2]
[420971342,1776832243363,-313.0,0.00010883,2]
[420971343,1776832243373,-371.0,0.00010917,2]
[420971344,1776832243382,-500.0,0.00010918,2]
[420971345,1776832243391,-151.0,0.00010918,2]
[420971346,1776832243402,-150.272,0.00010936,2]
[420971347,1776832243412,-1265.0,0.00010936,2]
[420971348,1776832243421,-927.0,0.00010936,2]
[420971349,1776832243431,-2474.0,0.00010936,2]
[420971350,1776832243441,-6031.0,0.00010936,2]
[420971351,1776832243450,-500.0,0.00010959,2]
[420971352,1776832243460,-3240.0,0.00010959,2]
[420971353,1776832243470,-2425.0,0.00010959,2]
[420971354,1776832243480,-1032.0,0.00010959,2]
[420971355,1776832243491,-500.0,0.00010973,2]
[420971356,1776832243500,-151.0,0.00010973,2]
[420971357,1776832243511,-959.0,0.00010974,2]
[420971358,1776832243520,-500.0,0.00011028,2]
[420971359,1776832243530,-151.0,0.00011028,2]
[420971360,1776832243540,-638.0,0.00011068,2]
[420971361,1776832243550,-164.05,0.00011079,2]
[420971362,1776832243560,-500.0,0.00011083,2]
[420971363,1776832243570,-151.0,0.00011083,2]
[420971364,1776832243579,-353.38117866,0.00011098,2]
[420971365,1776832243589,-300.0,0.00011098,2]
[420971366,1776832243598,-300.0,0.00011098,2]
[420971367,1776832243608,-10708.84115007,0.00011099,2]
[420971368,1776832243618,-10708.84115006,0.00011099,2]
[420971369,1776832243628,-10708.84115006,0.00011099,2]
[420971370,1776832243637,-10708.84115006,0.00011099,2]
[420971371,1776832243647,-10708.84115006,0.00011099,2]
[420971372,1776832243656,-10708.84115006,0.00011099,2]
[420971373,1776832243666,-10708.84115006,0.00011099,2]
[420971374,1776832243675,-500.0,0.00011138,2]
[420971375,1776832243685,-151.0,0.00011138,2]
[420971376,1776832243695,-10708.84115006,0.00011171,2]
[420971377,1776832243704,-151.0,0.00011193,2]
[420971378,1776832243719,-10000.0,0.00011202,2]
[420971379,1776832243728,-318.14,0.0001124,2]
[420971380,1776832243738,-590.26,0.0001124,2]
[420971381,1776832243748,-230.17,0.00011241,2]
[420971382,1776832243758,-181.08010149,0.00011246,2]
[420971383,1776832243768,-290.26104003,0.00011246,2]
[420971384,1776832243778,-151.0,0.00011248,2]
[420971385,1776832243787,-1093.83820704,0.00011305,3]
[420971386,1776832243797,-651.0,0.0001132,5]
[420971387,1776832243807,-736.0,0.00011366,2]
[420971388,1776832243817,-498.17071115,0.0001141,2]
[420971389,1776832243826,-304.36859545,0.00011499,2]
[420971390,1776832243836,-300.0,0.00011499,2]
[420971391,1776832243845,-10783.35706524,0.000115,2]
[420971392,1776832243863,-1979.65645078,0.000115,2]
[420971393,1776832243875,-3575.413935,0.000115,2]
[420971394,1776832243896,-8661.57254898,0.000115,2]
[420971395,1776832243906,-21202.32199705,0.000115,2]
[420971396,1776832243916,-5077.59,0.00011507,2]
[420971397,1776832243926,-938.0,0.00011512,2]
[420971398,1776832243936,-938.0,0.00011514,2]
[420971399,1776832243945,-938.0,0.00011517,2]
[420971400,1776832243955,-938.0,0.00011517,2]
[420971401,1776832243964,-938.0,0.00011518,2]
[420971402,1776832243974,-10708.84115006,0.00011536,2]
[420971403,1776832243984,-938.0,0.00011552,2]
[420971404,1776832243993,-938.0,0.00011576,2]
[420971405,1776832244003,-164.05,0.00011583,2]
[420971406,1776832244013,-3500.0,0.000116,4]
[420971407,1776832244022,-938.0,0.00011604,2]
[420971408,1776832244032,-1234.0,0.00011611,2]
[420971409,1776832244042,-938.0,0.00011615,2]
[420971410,1776832244051,-1093.83820704,0.00011643,3]
[420971411,1776832244061,-938.0,0.00011646,2]
[420971412,1776832244070,-938.0,0.0001165,2]
[420971413,1776832244080,-938.0,0.00011656,2]
[420971414,1776832244089,-151.0,0.00011666,2]
[420971415,1776832244099,-151.0,0.00011672,2]
[420971416,1776832244113,-151.0,0.00011672,2]
[420971417,1776832244123,-151.0,0.0001168,2]
[420971418,1776832244133,-430.1581,0.00011684,2]
[420971419,1776832244142,-2748.68951859,0.000117,4]
[420971420,1776832244155,-1651.31048141,0.000117,4]
[420971421,1776832244165,-358.813902,0.00011714,2]
[420971422,1776832244175,-938.0,0.00011717,2]
[420971423,1776832244184,-201.030121,0.00011721,2]
[420971424,1776832244193,-938.0,0.00011733,2]
[420971425,1776832244203,-954.0,0.00011735,2]
[420971426,1776832244212,-710.037671,0.00011748,2]
[420971427,1776832244222,-300.0,0.00011759,2]
[420971428,1776832244232,-7499.18963501,0.0001176,2]
[420971429,1776832244242,-5000.0,0.0001176,2]
[420971430,1776832244252,-5000.0,0.0001176,2]
[420971431,1776832244262,-5000.0,0.0001176,2]
[420971432,1776832244272,-5000.0,0.0001176,2]
[420971433,1776832244282,-2867.11370555,0.0001176,2]
[420971434,1776832244291,-938.0,0.00011765,2]
[420971435,1776832244301,-938.0,0.00011766,2]
[420971436,1776832244311,-419.16,0.00011779,2]
[420971437,1776832244321,-187.78006525,0.00011794,2]
[420971438,1776832244331,-301.00069851,0.00011794,2]
[420971439,1776832244341,-800.0,0.000118,4]
[420971440,1776832244877,-1093.83820704,0.00011858,3]
[420971441,1776832244888,-444.44444,0.0001188,2]
[420971442,1776832244899,-444.44445,0.0001188,2]
[420971443,1776832244908,-444.44444,0.0001189,2]
[420971444,1776832244918,-300.0,0.00011899,2]
[420971445,1776832244928,-2435.27262546,0.000119,2]
[420971446,1776832244938,-10000.0,0.000119,2]
[420971447,1776832244948,-850.5744173,0.000119,2]
[420971448,1776832244958,-426.73935396,0.000119,2]
[420971449,1776832244968,-200.0,0.000119,2]
[420971450,1776832244978,-426.73935396,0.000119,2]
[420971451,1776832244987,-426.73935396,0.000119,2]
[420971452,1776832244996,-426.73935396,0.000119,2]
[420971453,1776832245006,-426.73935396,0.000119,2]
[420971454,1776832245016,-426.73935396,0.000119,2]
[420971455,1776832245025,-426.73935396,0.000119,2]
[420971456,1776832245035,-426.73935396,0.000119,2]
[420971457,1776832245044,-426.73935396,0.000119,2]
[420971458,1776832245054,-426.73935396,0.000119,2]
[420971459,1776832245063,-426.73935396,0.000119,2]
[420971460,1776832245073,-800.0,0.000119,4]
[420971461,1776832245083,-426.73935396,0.000119,2]
[420971462,1776832245092,-5152.3228804,0.000119,2]
[420971463,1776832245102,-13882.11405634,0.000119,2]
[420971464,1776832245112,-1449.83567962,0.000119,2]
[420971465,1776832245122,-10708.84115006,0.000119,2]
[420971466,1776832245132,-444.44445,0.0001191,2]
[420971467,1776832245141,-250.0,0.00011929,2]
[420971468,1776832245151,-342.17,0.00011929,2]
[420971469,1776832245161,-1152.0,0.00011972,2]
[420971470,1776832245170,-15486.0,0.00011973,2]
[420971471,1776832245180,-484.400713,0.00011973,2]
[420971472,1776832245190,-484.400713,0.00011973,2]
[420971473,1776832245199,-484.400713,0.00011973,2]
[420971474,1776832245209,-466.0,0.00011975,2]
[420971475,1776832245219,-500.0,0.00011975,2]
[420971476,1776832245228,-1088.0,0.00011975,2]
[420971477,1776832245238,-1589.0,0.00011975,2]
[420971478,1776832245248,-362.0,0.00011975,2]
[420971479,1776832245257,-315.0,0.00011975,2]
[420971480,1776832245267,-1599.0,0.00011975,2]
[420971481,1776832245276,-486.0,0.00011975,2]
[420971482,1776832245286,-692.88227069,0.0001199,2]
[420971483,1776832245296,-692.88227069,0.0001199,2]
[420971484,1776832245305,-151.0,0.00011997,2]
[420971485,1776832245315,-300.0,0.00011998,2]
[420971486,1776832245324,-300.0,0.00011999,2]
[420971487,1776832245334,-1093.83820703,0.00011999,3]
[420971488,1776832245344,-1093.83820704,0.00011999,3]
[420971489,1776832245353,-1093.83820704,0.00011999,3]
[420971490,1776832245364,-13347.32308705,0.00011999,2]
[420971491,1776832245378,-8217.96531425,0.00011999,2]
[420971492,1776832245387,-517.11080482,0.00011999,2]
[420971493,1776832245401,-1859.6691031,0.00011999,2]
[420971494,1776832245411,-4473.3353928,0.00011999,2]
[420971495,1776832245421,-1504.4126419,0.00011999,2]
[420971496,1776832245431,-723.0,0.00012,5]
[420971497,1776832245441,-1603.54134461,0.00012,2]
[420971498,1776832245454,-3114.16252253,0.00012,2]
[420971499,1776832245466,-14287.56355682,0.00012,2]
[420971500,1776832245476,-63153.43644306,0.00012,2]
[420971501,1776832245498,-458.87313864,0.00012,2]
[420971502,1776832245510,-3197.51959364,0.00012,2]
[420971505,1776832246242,-215.94009,0.00010105,2]
[420971506,1776832246253,-160.20764805,0.00010636,2]
[420971507,1776832246263,-484.400713,0.00011973,2]
[420971508,1776832246273,-9551.51979062,0.00012,2]
[420971509,1776832246285,-5663.30637849,0.00012,2]
[420971510,1776832246298,-3790.63656865,0.00012,2]
[420971511,1776832246311,-23291.23450175,0.00012,2]
[420971512,1776832246322,-1201.83206832,0.00012,2]
[420971513,1776832246338,-1280.3099978,0.00012,2]
[420971514,1776832246350,-1668.15524996,0.00012,2]
[420971515,1776832246366,-540.74393397,0.00012,2]
[420971525,1776832246476,-698.06429377,0.00012,2]
[420971526,1776832246489,-628.43809262,0.00012,2]
[420971527,1776832246501,-370.45,0.00012,2]
[420971528,1776832246522,-2619.9222051,0.00012,2]
[420971529,1776832246535,-529256.8049005,0.00012,2]
[420971530,1776832246545,-253573.84626513,0.00012,2]
[420971551,1776833050142,10000.0,0.000165,30]
[420971552,1776833128588,10000.0,0.000165,30]
[420971553,1776833372977,-503.52794099,7.65e-05,2]
[420971554,1776833376254,-260.00131455,7.65e-05,2]
[420971555,1776833378409,-501.84501974,7.65e-05,2]
[420971601,1776833432552,-234.62572472,7.65e-05,2]
[420971603,1776833432561,-300.0,8.153e-05,2]
[420971605,1776833432571,-1200.0,8.153e-05,2]
[420971607,1776833432581,-300.0,8.153e-05,2]
[420971609,1776833432590,-150.0,8.154e-05,2]
[420971610,1776833432600,-300.0,8.154e-05,2]
[420971612,1776833432610,-250.0,8.154e-05,2]
[420971614,1776833432619,-92551.5,8.155e-05,2]
[420971616,1776833432629,-250.0,8.238e-05,2]
[420971618,1776833432639,-5051.52787188,8.26e-05,2]
[420971620,1776833432649,-3447.08063717,8.285e-05,2]
[420971622,1776833432658,-150.0,8.334e-05,2]
[420971624,1776833432667,-150.0,8.334e-05,2]
[420971625,1776833432676,-150.0,8.334e-05,2]
[420971627,1776833432686,-150.0,8.334e-05,2]
[420971629,1776833432695,-150.0,8.334e-05,2]
[420971631,1776833432704,-150.0,8.373e-05,2]
[420971633,1776833432714,-150.0,8.411e-05,2]
[420971635,1776833432724,-300.0,8.415e-05,2]
[420971637,1776833432733,-5000.0,8.415e-05,2]
[420971638,1776833432742,-160.65,8.432e-05,2]
[420971640,1776833432752,-150.0,8.45e-05,2]
[420971642,1776833432762,-1954.0,8.466e-05,2]
[420971643,1776833432771,-318.0,8.483e-05,2]
[420971644,1776833432781,-150.0,8.489e-05,2]
[420971645,1776833432790,-3139.38,8.498e-05,2]
[420971646,1776833432799,-846.0,8.5e-05,2]
[420971647,1776833432809,-150.0,8.527e-05,2]
[420971648,1776833432818,-214.2,8.548e-05,2]
[420971649,1776833432828,-150.0,8.566e-05,2]
[420971650,1776833432837,-283.06637302,8.583e-05,2]
[420971651,1776833432846,-447.79758792,8.583e-05,2]
[420971652,1776833432855,-949.9428,8.597e-05,2]
[420971653,1776833432865,-150.0,8.604e-05,2]
[420971654,1776833432874,-244646.76767658,8.606e-05,2]
[420971655,1776833432886,-5151.91811157,8.606e-05,2]
[420971656,1776833432898,-55973.82961185,8.606e-05,2]
[420971657,1776833432907,-236.8705,8.607e-05,2]
[420971658,1776833432916,-5874.574,8.607e-05,2]
[420971659,1776833432926,-2500.0,8.607e-05,2]
[420971660,1776833432935,-150.0,8.643e-05,2]
[420971661,1776833432945,-150.0,8.682e-05,2]
[420971662,1776833432955,-501.29776435,8.683e-05,2]
[420971663,1776833432964,-500.0,8.683e-05,2]
[420971664,1776833432974,-160.35239601,8.683e-05,2]
[420971665,1776833432983,-269.952,8.705e-05,2]
[420971666,1776833432993,-4113.761,8.705e-05,2]
[420971667,1776833433002,-150.0,8.713e-05,2]
[420971668,1776833433012,-150.0,8.72e-05,2]
[420971669,1776833433021,-150.0,8.759e-05,2]
[420971670,1776833433030,-1166.9,8.774e-05,2]
[420971671,1776833433040,-150.0,8.797e-05,2]
[420971672,1776833433050,-200.0,8.8e-05,3]
[420971673,1776833433059,-150.0,8.836e-05,2]
[420971674,1776833433069,-150.0,8.874e-05,2]
[420971675,1776833433078,-400.0,8.9e-05,3]
[420971676,1776833433087,-150.0,8.913e-05,2]
[420971677,1776833433097,-150.0,8.952e-05,2]
[420971678,1776833433106,-420.0,8.968e-05,2]
[420971679,1776833433116,-1680.0,8.968e-05,2]
[420971680,1776833433125,-255.0,8.969e-05,2]
[420971681,1776833433135,-165.12276016,8.969e-05,2]
[420971682,1776833433144,-193.64259832,8.969e-05,2]
[420971683,1776833433153,-300.0,8.969e-05,2]
[420971684,1776833433163,-5000.0,8.969e-05,2]
[420971685,1776833433172,-2089.37212904,8.969e-05,2]
[420971686,1776833433195,-2673.01170746,8.969e-05,2]
[420971689,1776833438196,-500.78677809,8.605e-05,2]
[420971690,1776833438206,-500.0,8.605e-05,2]
[420971691,1776833438215,-303.10155736,8.605e-05,2]
[420971692,1776833438809,-196.89844264,8.605e-05,2]
[420971693,1776833438818,-500.0,8.605e-05,2]
[420971694,1776833438827,-500.0,8.605e-05,2]
[420971695,1776833438837,-245.31121159,8.605e-05,2]
[420971696,1776833438846,-500.0,8.605e-05,2]
[420971697,1776833438855,-500.0,8.605e-05,2]
[420971698,1776833438863,-415.89061537,8.605e-05,2]
[420971699,1776833438872,-500.0,8.797e-05,2]
[420971700,1776833438882,-237.6161635,8.969e-05,2]
[420971701,1776833438892,-250.0,8.969e-05,2]
[420971702,1776833438901,-150.0,8.99e-05,2]
[420971703,1776833438910,-600.0,9e-05,3]
[420971704,1776833438919,-150.0,9.029e-05,2]
[420971705,1776833438928,-150.0,9.067e-05,2]
[420971706,1776833438938,-150.0,9.106e-05,2]
[420971707,1776833438947,-150.0,9.145e-05,2]
[420971708,1776833438956,-356.0,9.17e-05,2]
[420971709,1776833438966,-150.0,9.183e-05,2]
[420971710,1776833438975,-818.0,9.217e-05,2]
[420971711,1776833438985,-150.0,9.222e-05,2]
[420971712,1776833438994,-1000.0,9.231e-05,2]
[420971713,1776833439004,-500.0,9.253e-05,2]
[420971714,1776833439013,-500.0,9.253e-05,2]
[420971715,1776833439022,-641.09102086,9.253e-05,2]
[420971716,1776833439031,-289.7208,9.26e-05,2]
[420971717,1776833439041,-4938.73467967,9.339e-05,2]
[420971718,1776833439051,-450.0,9.396e-05,2]
[420971719,1776833439060,-33078.91,9.397e-05,2]
[420971720,1776833439069,-1093.91752428,9.597e-05,3]
[420971721,1776833439078,-501.64017088,9.778e-05,2]
[420971722,1776833439087,-1000.0,9.801e-05,2]
[420971724,1776833439096,-164.95078226,9.801e-05,2]
[420971726,1776833439106,-761.0,9.809e-05,2]
[420971728,1776833439116,-433.0,9.866e-05,2]
[420971730,1776833439125,-232.96973693,0.0001,2]
[420971732,1776833439134,-369.48443543,0.0001,2]
[420971733,1776833439144,-415.44377613,0.0001,2]
[420971734,1776833439153,-399.0790362,0.0001,2]
[420971735,1776833439163,-361.37,0.0001,2]
[420971736,1776833439172,-150.5406227,0.0001,2]
[420971737,1776833439182,-283.52480578,0.0001,2]
[420971738,1776833439191,-376.76211281,0.0001,2]
[420971739,1776833439200,-323.49341363,0.0001,2]
[420971740,1776833439209,-200.0,0.0001,2]
[420971741,1776833439218,-500.0,0.0001,2]
[420971742,1776833439228,-151.0,0.0001,2]
[420971743,1776833439237,-151.0,0.0001,2]
[420971744,1776833439247,-500.0,0.0001,2]
[420971746,1776833439257,-151.0,0.0001,2]
[420971748,1776833439267,-500.0,0.0001,2]
[420971750,1776833439276,-151.0,0.0001,2]
[420971752,1776833439286,-151.0,0.0001,2]
[420971754,1776833439296,-500.0,0.0001,2]
[420971756,1776833439305,-151.0,0.0001,2]
[420971758,1776833439315,-500.0,0.0001,2]
[420971760,1776833439324,-151.0,0.0001,2]
[420971762,1776833439333,-500.0,0.0001,2]
[420971764,1776833439343,-151.0,0.0001,2]
[420971767,1776833439363,-500.0,0.0001,2]
[420971769,1776833439373,-151.0,0.0001,2]
[420971771,1776833439383,-500.0,0.0001,2]
[420971773,1776833439392,-151.0,0.0001,2]
[420971775,1776833439402,-500.0,0.0001,2]
[420971777,1776833439411,-151.0,0.0001,2]
[420971779,1776833439420,-500.0,0.0001,2]
[420971781,1776833439430,-500.0,0.0001,2]
[420971782,1776833439439,-500.0,0.0001,2]
[420971783,1776833439448,-500.0,0.0001,2]
[420971784,1776833439458,-500.0,0.0001,2]
[420971785,1776833439467,-500.0,0.0001,2]
[420971786,1776833439477,-500.0,0.0001,2]
[420971787,1776833439487,-151.0,0.0001,2]
[420971788,1776833439497,-500.0,0.0001,2]
[420971791,1776833439947,-500.0,0.0001,2]
[420971794,1776833440059,-500.0,0.0001,2]
[420971795,1776833440068,-500.0,0.0001,2]
[420971796,1776833440078,-500.0,0.0001,2]
[420971797,1776833440087,-500.0,0.0001,2]
[420971798,1776833440096,-504.22911844,0.0001,2]
[420971799,1776833440106,-1097.24,0.0001,2]
[420971800,1776833440115,-274.3,0.0001,2]
[420971801,1776833440124,-274.3,0.0001,2]
[420971802,1776833440133,-274.3,0.0001,2]
[420971803,1776833440142,-274.3,0.0001,2]
[420971804,1776833440152,-232.0,0.00010025,2]
[420971805,1776833440162,-1734.0,0.00010045,2]
[420971806,1776833440171,-231.0,0.00010065,2]
[420971807,1776833440180,-160.0,0.00010092,2]
[420971808,1776833440189,-187.69709141,0.00010286,2]
[420971809,1776833440199,-1500.0,0.00010348,2]
[420971810,1776833440208,-854.0,0.00010414,2]
[420971811,1776833440217,-710.0,0.00010433,2]
[420971812,1776833440227,-250.0,0.00010466,2]
[420971813,1776833440236,-710.0,0.00010524,2]
[420971814,1776833440245,-710.0,0.00010527,2]
[420971815,1776833440255,-720.0,0.00010545,2]
[420971816,1776833440264,-710.0,0.00010547,2]
[420971817,1776833440273,-283.52480577,0.0001057,2]
[420971818,1776833440283,-240.89,0.00010585,2]
[420971819,1776833440292,-710.0,0.00010595,2]
[420971820,1776833440301,-710.0,0.00010597,2]
[420971821,1776833440311,-432.0,0.000106,2]
[420971822,1776833440320,-150.0,0.00010636,2]
[420971823,1776833440330,-150.0,0.00010636,2]
[420971824,1776833440339,-219.31740261,0.00010636,2]
[420971825,1776833440348,-710.0,0.00010719,2]
[420971826,1776833440358,-710.0,0.00010759,2]
[420971827,1776833440367,-710.0,0.00010797,2]
[420971828,1776833440376,-576.0,0.00010801,2]
[420971829,1776833440385,-230.493763,0.00010805,2]
[420971830,1776833440395,-178.807284,0.00010805,2]
[420971831,1776833440404,-151.0,0.00010838,2]
[420971832,1776833440419,-384.0,0.00010853,2]
[420971833,1776833440428,-710.0,0.00010864,2]
[420971834,1776833440438,-25000.0,0.00011,2]
[420971835,1776833440447,-710.0,0.00011026,2]
[420971836,1776833440457,-2856.6,0.00011026,2]
[420971837,1776833440467,-2856.6,0.00011026,2]
[420971838,1776833440476,-710.0,0.00011038,2]
[420971839,1776833440487,-622.0,0.00011066,2]
[420971840,1776833440496,-3530.0,0.00011066,2]
[420971841,1776833440506,-200.0,0.00011066,2]
[420971842,1776833440515,-150.0,0.00011066,2]
[420971843,1776833440525,-173.098,0.00011066,2]
[420971844,1776833440535,-150.38,0.00011066,2]
[420971845,1776833440544,-2474.0,0.00011066,2]
[420971846,1776833440554,-178.79,0.0001107,2]
[420971847,1776833440564,-578.20924308,0.00011117,2]
[420971848,1776833440573,-1231.25915997,0.00011117,2]
[420971849,1776833440583,-1428.38747117,0.00011117,2]
[420971850,1776833440593,-200.0,0.00011117,2]
[420971851,1776833440602,-500.0,0.00011117,2]
[420971852,1776833440612,-151.0,0.00011117,2]
[420971853,1776833440621,-721.12765535,0.00011117,2]
[420971854,1776833440631,-174.61919141,0.00011117,2]
[420971855,1776833440640,-279.9045709,0.00011117,2]
[420971856,1776833440650,-194.72792766,0.00011117,2]
[420971857,1776833440660,-500.0,0.00011172,2]
[420971858,1776833440669,-151.0,0.00011172,2]
[420971859,1776833440679,-500.0,0.00011227,2]
[420971860,1776833440688,-151.0,0.00011227,2]
[420971861,1776833440697,-151.0,0.00011282,2]
[420971862,1776833440707,-151.0,0.00011337,2]
[420971863,1776833440716,-446.1,0.00011367,2]
[420971864,1776833440726,-151.0,0.00011392,2]
[420971865,1776833440735,-446.1,0.00011443,2]
[420971866,1776833440745,-151.0,0.00011447,2]
[420971867,1776833440754,-446.11,0.0001148,2]
[420971868,1776833440764,-151.0,0.00011502,2]
[420971869,1776833440774,-151.0,0.00011557,2]
[420971870,1776833440784,-800.0,0.000116,4]
[420971871,1776833440793,-151.0,0.00011612,2]
[420971872,1776833440802,-1481.23780761,0.00011665,2]
[420971873,1776833440811,-200.0,0.00011665,2]
[420971874,1776833440821,-194.72792765,0.00011665,2]
[420971876,1776833440831,-195.63885912,0.00011665,2]
[420971878,1776833440841,-151.0,0.00011667,2]
[420971879,1776833440850,-383.0,0.00011672,5]